[Event "GER-ch Youth-U12 2022"]
[Site "Willingen"]
[Date "2022.06.05"]
[Round "1.1"]
[White "Neuhoff, Laertes"]
[Black "Pimenov, Danil"]
[Result "1-0"]
[ECO "B33"]
[WhiteElo "1990"]
[BlackElo "1337"]
[Annotator "TA"]
[PlyCount "89"]
[EventDate "2022.06.05"]
[EventType "swiss"]
[EventRounds "9"]
[EventCountry "GER"]
[SourceTitle "playchess.com"]
[Source "ChessBase"]
[SourceQuality "1"]
[TimeControl "40/4500+30:900+30"]

{[%evp 35,89,66,63,72,109,115,147,152,239,0,-14,0,19,22,20,0,93,15,20,35,12,10,248,240,237,218,196,0,244,275,239,264,391,383,585,566,544,493,552,558,686,673,29977,29977,29976,29977,1067,948,29982,29983,29985,29985,29985,29986,29986,5314]} 1. e4 {[%emt 0:00:00]} c5 {[%emt 0:00:00]} 2. Nf3 {[%emt 0:00:00]} Nc6 {[%emt 0:00:00]} 3. d4 {[%emt 0:00:00]} cxd4 {[%emt 0:00:00]} 4. Nxd4 {[%emt 0:00:00]} Nf6 {[%emt 0:00:00]} 5. Nc3 {[%emt 0:00:00]} e5 {[%emt 0:00:00]} 6. Ndb5 {[%emt 0:00:00]} d6 {[%emt 0:00:00]} 7. Bg5 {[%emt 0:00:00]} a6 {[%emt 0:00:00]} 8. Na3 {[%emt 0:00:00]} b5 {[%emt 0:00:00]} 9. Bxf6 {[%emt 0:00:00]} gxf6 {[%emt 0:00:00]} 10. Nd5 {[%emt 0:00:00]} Bg7 {[%emt 0:00:00]} 11. Bd3 {[%emt 0:00:00]} Ne7 {[%emt 0:00:00]} 12. Nxe7 {[%emt 0:00:00]} Qxe7 {[%emt 0:00:00]} 13. O-O {[%emt 0:00:00]} O-O {[%emt 0:00:00]} 14. c4 {[%emt 0:07:54]} f5 {[%emt 0:00:00]} 15. Qf3 {[%emt 0:09:40]} (15. exf5 e4 16. Qe2 b4) 15... bxc4 {[%emt 0:06:17]} (15... d5 16. cxd5 fxe4 17. Bxe4 (17. Qxe4 f5) 17... Rb8) 16. Nxc4 {[%emt 0:12:16]} d5 {[%emt 0:01:09]} 17. exd5 {[%emt 0:04:14]} e4 {[%emt 0:00:40]} 18. Qe3 {[%emt 0:01:12]} Bb7 {[%emt 0:07:19]} 19. d6 {[%emt 0:07:33] B33: Sicilian: Pelikan and Sveshnikov Variations.} Qe6 {[%emt 0:01:46]} 20. Be2 {[%emt 0:00:41]} Rac8 {[%emt 0:01:24]} 21. Rad1 {[%emt 0:06:57] White is more active. White is clearly better.} Rxc4 {[%emt 0:04:33]} (21... Rcd8 $16 {was necessary.} 22. Qa7 Bc8) 22. Bxc4 $2 {[%emt 0:02:17]} (22. d7 $18 Rcc8 23. dxc8=N Bxc8 24. b3) 22... Qxc4 $11 {[%emt 0:00:10]} 23. Qg5 {[%emt 0:07:07] [#] d7 is the strong threat.} Qe6 $146 {[%emt 0:01:45] Strongly threatening ...h6.} (23... Qxa2 $2 24. d7 f6 25. Qg3 $18) ({Predecessor:} 23... h6 24. Qe7 Qb4 25. a3 Qb6 26. d7 Rd8 27. Qe8+ Bf8 28. Rc1 e3 29. Rc3 f4 {0-1 (36) Niemi,K (2247)-Caruana,F (2255) Budapest 2005}) 24. d7 {[%emt 0:01:27][%mdl 1024] White has compensation.} h6 {[%emt 0:05:52]} 25. Qf4 {[%emt 0:07:24]} Bf6 {[%emt 0:01:42] [#]} (25... Be5 $11 26. Qh4 Bf6 27. Qg3+ (27. Qxh6 Rd8 $15) 27... Kh7) 26. Qg3+ {[%emt 0:06:25]} (26. Qxh6 Rd8) (26. Rd6 Qe7 27. Rfd1) ({Much weaker is} 26. Qxh6 Rd8 $15) (26. Rd6 $1 $16 Qe7 27. Rfd1) 26... Kh7 $1 {[%emt 0:01:37] Threatens to win with ...Bd5.} 27. Rd6 {[%emt 0:00:33]} Qe7 {[%emt 0:00:31] And now ...Be5 would win.} 28. Qf4 $36 {[%emt 0:03:52][%mdl 2048] White has some pressure.} Kg6 $2 {[%emt 0:01:28]} (28... Kg7 $11) 29. Rfd1 $18 {[%emt 0:01:14]} Rd8 {[%emt 0:01:50]} 30. h4 {[%emt 0:01:14] Black must now prevent Rb6.} Kg7 {[%emt 0:02:43]} 31. Qxf5 {[%emt 0:01:32]} (31. Rb6 $18) 31... Qe5 $2 {[%emt 0:00:25] [#]} (31... Bxh4 $11 {and Black is okay.} 32. Rb6 Ba8) 32. Qxe5 $1 {[%emt 0:03:18] The board is on fire.} Bxe5 {[%emt 0:00:16]} 33. Rb6 {[%emt 0:00:43]} Bc8 {[%emt 0:00:53]} (33... Ba8 {is a better defense.} 34. Rxa6 e3) 34. Rd5 {[%emt 0:01:23]} f6 {[%emt 0:01:50]} (34... Bf4 $142 35. g3 (35. dxc8=B Rxd5 36. g3 Be5 $14) 35... e3 36. gxf4 e2) 35. dxc8=Q {[%emt 0:00:47]} Rxc8 {[%emt 0:00:09][%mdl 4096] Endgame KRR-KRB} 36. Rd1 {[%emt 0:00:39] Against Rc1} Rc2 {[%emt 0:00:09]} 37. h5 {[%emt 0:00:19] aiming for Rb7+.} f5 {[%emt 0:01:34]} 38. Rxa6 {[%emt 0:00:41] Threatening mate with Rd7+.} Rxb2 {[%emt 0:01:10]} 39. Rd7+ {[%emt 0:00:16]} Kf8 {[%emt 0:00:24]} 40. Ra8+ {[%emt 0:00:07]} Bb8 {[%emt 0:00:21]} 41. Rd8+ {[%emt 0:15:20]} Ke7 {[%emt 0:15:06]} 42. Rdxb8 {[%emt 0:00:11] White mates.} Rc2 {[%emt 0:00:12]} 43. Ra6 {[%emt 0:00:05]} Kd7 {[%emt 0:00:21]} 44. Rb7+ {[%emt 0:00:08]} Kc8 {[%emt 0:00:08]} 45. Rh7 {[%emt 0:00:50] Weighted Error Value: White=0.30/Black=1.20} (45. Rf7 $142 Kb8 46. Rxh6 Rc8 47. Rb6+ Ka8 48. Rxf5 Ka7 49. Rg6 Rc7 50. h6) 1-0

[Event "GER-ch Youth-U12 2022"]
[Site "Willingen"]
[Date "2022.06.05"]
[Round "1.2"]
[White "Gulamzada, Elmir"]
[Black "Nechitailo, Nikita"]
[Result "0-1"]
[ECO "B35"]
[WhiteElo "1539"]
[BlackElo "1371"]
[Annotator "NA RC COMBH"]
[PlyCount "116"]
[EventDate "2022.06.05"]
[EventType "swiss"]
[EventRounds "9"]
[EventCountry "GER"]
[SourceTitle "playchess.com"]
[Source "ChessBase"]
[SourceQuality "1"]
[TimeControl "40/4500+30:900+30"]

1. e4 {[%emt 0:00:00]} c5 {[%emt 0:00:00]} 2. Nf3 {[%emt 0:00:00]} Nc6 {[%emt 0:00:00]} 3. d4 {[%emt 0:00:00]} cxd4 {[%emt 0:00:00]} 4. Nxd4 {[%emt 0:00:00]} g6 {[%emt 0:00:00]} 5. Nc3 {[%emt 0:00:00]} Bg7 {[%emt 0:00:00]} 6. Be3 {[%emt 0:00:00]} Nf6 {[%emt 0:00:00]} 7. Bc4 {[%emt 0:00:00]} Qa5 {[%emt 0:00:00]} 8. f3 {[%emt 0:00:00]} Qb4 {[%emt 0:00:00]} 9. Bb3 {[%emt 0:00:32]} Nxe4 {[%emt 0:00:00]} 10. fxe4 {[%emt 0:05:29]} Bxd4 {[%emt 0:00:00]} 11. Bxd4 {[%emt 0:01:50]} Nxd4 {[%emt 0:00:00]} 12. O-O {[%emt 0:02:03]} O-O {[%emt 0:00:00]} 13. Nd5 {[%emt 0:00:43]} Qc5 {[%emt 0:00:00]} 14. Kh1 {[%emt 0:05:30]} Nxb3 {[%emt 0:00:00]} 15. cxb3 {[%emt 0:02:36]} b6 {[%emt 0:00:00]} 16. Rc1 {[%emt 0:02:01]} Qd6 {[%emt 0:00:00]} 17. Nf6+ {[%emt 0:01:48]} Kg7 {[%emt 0:00:00]} 18. Qxd6 {[%emt 0:01:17]} exd6 {[%emt 0:00:00]} 19. Rcd1 {[%emt 0:01:23]} Ba6 {[%emt 0:00:56]} 20. Rf2 {[%emt 0:00:31]} Rac8 {[%emt 0:00:34]} 21. Nxd7 {[%emt 0:01:35]} Rfe8 {[%emt 0:00:12]} 22. h3 {[%emt 0:02:13]} Rxe4 {[%emt 0:02:11]} 23. Rxd6 {[%emt 0:07:53]} Rd8 {[%emt 0:00:06]} 24. Rfd2 {[%emt 0:00:07]} Re2 {[%emt 0:00:20]} 25. Rxe2 {[%emt 0:01:22]} Bxe2 {[%emt 0:00:05]} 26. Rd5 {[%emt 0:00:49]} Rc8 {[%emt 0:05:32]} 27. Rd2 {[%emt 0:01:47]} Bb5 {[%emt 0:02:08]} 28. Ne5 {[%emt 0:00:17]} f6 {[%emt 0:02:07]} 29. Nc4 {[%emt 0:02:31]} Kf8 {[%emt 0:08:21]} 30. Rd4 {[%emt 0:03:55]} Ke7 {[%emt 0:01:48]} 31. Kh2 {[%emt 0:10:40]} Bc6 {[%emt 0:02:25]} 32. Rd2 {[%emt 0:07:28]} b5 {[%emt 0:08:48]} 33. Ne3 {[%emt 0:04:20]} Ke6 {[%emt 0:06:05]} 34. Re2 {[%emt 0:05:45]} f5 {[%emt 0:02:14]} 35. Nc2+ {[%emt 0:01:31]} Kf6 {[%emt 0:10:13]} 36. Nd4 {[%emt 0:01:12]} Bd7 {[%emt 0:01:19]} 37. h4 {[%emt 0:02:42]} Rc5 {[%emt 0:01:29]} 38. g3 {[%emt 0:02:37]} Rd5 {[%emt 0:00:55]} 39. Nf3 {[%emt 0:01:45]} Rd1 {[%emt 0:03:10]} 40. Ne5 {[%emt 0:03:22]} Be6 {[%emt 0:00:41]} 41. Nf3 {[%emt 0:16:52]} Bd5 {[%emt 0:15:38]} 42. Ng1 {[%emt 0:01:11]} Ra1 {[%emt 0:01:10]} 43. Rd2 {[%emt 0:03:00]} Ke6 {[%emt 0:00:23]} 44. a3 {[%emt 0:00:39]} Bxb3 {[%emt 0:00:42]} 45. Re2+ {[%emt 0:00:21]} Kf6 {[%emt 0:00:23]} 46. Rd2 {[%emt 0:00:54]} Rd1 {[%emt 0:00:15]} 47. Re2 {[%emt 0:00:00]} Rc1 {[%emt 0:00:00]} 48. Nf3 {[%emt 0:00:00]} Bd1 {[%emt 0:00:00]} 49. Rf2 {[%emt 0:00:00]} Bxf3 {[%emt 0:00:00]} 50. Rxf3 {[%emt 0:00:03]} Rc2+ {[%emt 0:00:00]} 51. Kh3 {[%emt 0:00:00]} Rxb2 {[%emt 0:00:00]} 52. Rc3 {[%emt 0:00:00]} a5 {[%emt 0:00:00]} 53. Rc5 {[%emt 0:00:00]} a4 {[%emt 0:00:00]} 54. Rc6+ {[%emt 0:00:00]} Ke5 {[%emt 0:00:00]} 55. h5 {[%emt 0:00:00]} gxh5 {[%emt 0:00:00]} 56. Rc5+ {[%emt 0:00:00]} Ke4 {[%emt 0:00:00]} 57. Kh4 {[%emt 0:00:00]} f4 {[%emt 0:00:00]} 58. gxf4 {[%emt 0:00:00]} Kxf4 {[%emt 0:00:00]} 0-1

[Event "GER-ch Youth-U12 2022"]
[Site "Willingen"]
[Date "2022.06.05"]
[Round "1.3"]
[White "Korchynskyi, Mykola"]
[Black "Nguyen, Bach Khoi"]
[Result "1-0"]
[ECO "D31"]
[WhiteElo "1723"]
[BlackElo "1261"]
[Annotator "NA RC COMBH"]
[PlyCount "59"]
[EventDate "2022.06.05"]
[EventType "swiss"]
[EventRounds "9"]
[EventCountry "GER"]
[SourceTitle "playchess.com"]
[Source "ChessBase"]
[SourceQuality "1"]
[TimeControl "40/4500+30:900+30"]

1. d4 {[%emt 0:00:00]} d5 {[%emt 0:00:00]} 2. c4 {[%emt 0:00:00]} e6 {[%emt 0:00:00]} 3. Nc3 {[%emt 0:00:00]} c6 {[%emt 0:00:00]} 4. Bf4 {[%emt 0:00:00]} dxc4 {[%emt 0:00:00]} 5. a4 {[%emt 0:00:00]} Bb4 {[%emt 0:00:00]} 6. e3 {[%emt 0:00:00]} b5 {[%emt 0:00:00]} 7. axb5 {[%emt 0:00:00]} cxb5 {[%emt 0:00:00]} 8. Qf3 {[%emt 0:00:00]} Qd5 {[%emt 0:00:00]} 9. Qg3 {[%emt 0:00:00]} Qf5 {[%emt 0:08:37]} 10. Qxg7 {[%emt 0:00:00]} f6 {[%emt 0:11:46]} 11. Qxh8 {[%emt 0:00:00]} Kf7 {[%emt 0:00:13]} 12. g4 {[%emt 0:00:00]} Qc2 {[%emt 0:01:28]} 13. Nge2 {[%emt 0:00:00]} Bf8 {[%emt 0:00:33]} 14. Rc1 {[%emt 0:00:00]} Qg6 {[%emt 0:01:53]} 15. h4 {[%emt 0:00:00]} Bg7 {[%emt 0:00:33]} 16. h5 {[%emt 0:00:00]} Qd3 {[%emt 0:00:21]} 17. Qxg7+ {[%emt 0:00:00]} Kxg7 {[%emt 0:00:13]} 18. Ng3 {[%emt 0:00:00]} Qxc3+ {[%emt 0:01:31]} 19. Rxc3 {[%emt 0:00:00]} Bb7 {[%emt 0:00:32]} 20. Rg1 {[%emt 0:00:00]} Ne7 {[%emt 0:00:46]} 21. Bxb8 {[%emt 0:00:00]} Rxb8 {[%emt 0:00:11]} 22. Bg2 {[%emt 0:00:00]} Bxg2 {[%emt 0:00:22]} 23. Rxg2 {[%emt 0:00:00]} Nd5 {[%emt 0:00:07]} 24. Ra3 {[%emt 0:00:00]} Ra8 {[%emt 0:01:05]} 25. Ra6 {[%emt 0:00:16]} Kf7 {[%emt 0:00:48]} 26. Ne4 {[%emt 0:00:29]} Nb4 {[%emt 0:00:23]} 27. Ra5 {[%emt 0:01:26]} Nd3+ {[%emt 0:00:35]} 28. Kd2 {[%emt 0:00:03]} b4 {[%emt 0:00:29]} 29. Nd6+ {[%emt 0:00:09]} Ke7 {[%emt 0:00:56]} 30. Nxc4 {[%emt 0:00:02]} 1-0

[Event "GER-ch Youth-U12 2022"]
[Site "Willingen"]
[Date "2022.06.05"]
[Round "1.4"]
[White "Kullmann, Max"]
[Black "Gloeckler, Christian"]
[Result "0-1"]
[ECO "E70"]
[WhiteElo "1442"]
[BlackElo "1869"]
[Annotator "NA RC COMBH"]
[PlyCount "75"]
[EventDate "2022.06.05"]
[EventType "swiss"]
[EventRounds "9"]
[EventCountry "GER"]
[SourceTitle "playchess.com"]
[Source "ChessBase"]
[SourceQuality "1"]
[TimeControl "40/4500+30:900+30"]

1. d4 {[%emt 0:00:00]} Nf6 {[%emt 0:00:00]} 2. c4 {[%emt 0:00:00]} g6 {[%emt 0:00:00]} 3. Nc3 {[%emt 0:00:00]} Bg7 {[%emt 0:00:00]} 4. e4 {[%emt 0:00:00]} d6 {[%emt 0:00:00]} 5. Nge2 {[%emt 0:00:00]} O-O {[%emt 0:00:00]} 6. g3 {[%emt 0:00:00]} e5 {[%emt 0:00:00]} 7. d5 {[%emt 0:01:08]} Ne8 {[%emt 0:00:00]} 8. Bg2 {[%emt 0:06:43]} f5 {[%emt 0:00:00]} 9. O-O {[%emt 0:00:35]} a5 {[%emt 0:00:00]} 10. a3 {[%emt 0:01:29]} Na6 {[%emt 0:00:00]} 11. Be3 {[%emt 0:01:22]} b6 {[%emt 0:00:47]} 12. Qc2 {[%emt 0:03:04]} Bd7 {[%emt 0:04:09]} 13. Rab1 {[%emt 0:04:25]} Nf6 {[%emt 0:04:46]} 14. b4 {[%emt 0:04:59]} axb4 {[%emt 0:03:43]} (14... f4 $5 15. gxf4 Ng4 $14) 15. axb4 {[%emt 0:00:14]} Ng4 {[%emt 0:00:36]} 16. Nb5 {[%emt 0:10:48]} f4 {[%emt 0:04:07]} 17. gxf4 {[%emt 0:03:00]} exf4 {[%emt 0:00:11]} 18. Bxf4 {[%emt 0:01:25]} Rxf4 {[%emt 0:13:14]} 19. Nxf4 {[%emt 0:01:15]} Be5 {[%emt 0:00:15]} 20. Nh3 {[%emt 0:18:28]} Nxh2 {[%emt 0:01:49]} 21. f4 {[%emt 0:05:08]} Nxf1 {[%emt 0:00:27]} 22. fxe5 {[%emt 0:02:23]} Ne3 {[%emt 0:00:44]} 23. Qe2 {[%emt 0:00:49]} Nxg2 {[%emt 0:00:56]} 24. e6 {[%emt 0:04:02] [#]} Nh4 $1 {[%emt 0:01:30]} 25. exd7 {[%emt 0:02:46]} Qxd7 $11 {[%emt 0:01:13]} 26. Ng5 {[%emt 0:01:33]} Re8 {[%emt 0:15:26]} 27. Ne6 {[%emt 0:01:09]} g5 {[%emt 0:15:05]} 28. Qh5 {[%emt 0:03:30]} c5 {[%emt 0:02:17]} 29. Rf1 {[%emt 0:02:42]} Ng6 {[%emt 0:01:05]} 30. Nxg5 {[%emt 0:00:27]} Re5 {[%emt 0:01:12]} 31. Qxh7+ {[%emt 0:04:07]} Qxh7 {[%emt 0:00:16]} 32. Nxh7 {[%emt 0:00:03]} Kxh7 {[%emt 0:00:22]} 33. bxc5 {[%emt 0:01:22]} Nxc5 {[%emt 0:00:29]} 34. Nxd6 {[%emt 0:00:44]} Nxe4 {[%emt 0:00:12]} 35. Nf7 {[%emt 0:01:00]} Re7 {[%emt 0:01:05]} 36. Nd8 {[%emt 0:00:32]} Nd2 {[%emt 0:00:53]} 37. Rc1 {[%emt 0:01:05]} Nf4 {[%emt 0:00:44]} 38. Rc2 {[%emt 0:01:17]} 0-1

[Event "GER-ch Youth-U12 2022"]
[Site "Willingen"]
[Date "2022.06.05"]
[Round "1.5"]
[White "Zhuikov, Edgard"]
[Black "Büchel, David"]
[Result "1-0"]
[ECO "B21"]
[WhiteElo "1892"]
[BlackElo "1527"]
[Annotator "NA RC COMBH"]
[PlyCount "71"]
[EventDate "2022.06.05"]
[EventType "swiss"]
[EventRounds "9"]
[EventCountry "GER"]
[SourceTitle "playchess.com"]
[Source "ChessBase"]
[SourceQuality "1"]
[TimeControl "40/4500+30:900+30"]

1. e4 {[%emt 0:00:00]} c5 {[%emt 0:00:00]} 2. d4 {[%emt 0:00:00]} cxd4 {[%emt 0:00:00]} 3. c3 {[%emt 0:00:00]} dxc3 {[%emt 0:00:00]} 4. Nxc3 {[%emt 0:00:00]} Nc6 {[%emt 0:00:00]} 5. Nf3 {[%emt 0:00:00]} d6 {[%emt 0:00:00]} 6. Bc4 {[%emt 0:00:00]} a6 {[%emt 0:00:00]} 7. O-O {[%emt 0:00:00]} Nf6 {[%emt 0:00:00]} 8. h3 {[%emt 0:00:00]} e6 {[%emt 0:00:00]} 9. Qe2 {[%emt 0:00:00]} Be7 {[%emt 0:00:00]} 10. Rd1 {[%emt 0:00:00]} Qc7 {[%emt 0:00:00]} 11. Bf4 {[%emt 0:00:00]} O-O {[%emt 0:00:00]} 12. Rac1 {[%emt 0:00:00]} Rd8 {[%emt 0:05:41]} 13. Bb3 {[%emt 0:00:00]} Kf8 {[%emt 0:10:25]} 14. Re1 {[%emt 0:00:00]} Re8 {[%emt 0:02:18]} 15. Qd3 {[%emt 0:00:00]} h6 {[%emt 0:03:46]} 16. Red1 {[%emt 0:00:00]} Rd8 {[%emt 0:02:47]} 17. Re1 {[%emt 0:00:00]} Bd7 $16 {[%emt 0:02:33] [#]} (17... Qa5 $15) 18. Nd5 $1 {[%emt 0:00:53]} exd5 {[%emt 0:15:54]} 19. exd5 {[%emt 0:00:05]} Be8 {[%emt 0:01:45]} 20. dxc6 {[%emt 0:01:29]} bxc6 {[%emt 0:01:09]} 21. Nd4 {[%emt 0:01:28]} Ng8 {[%emt 0:05:30]} 22. Qf3 {[%emt 0:02:10]} c5 {[%emt 0:01:18]} 23. Ne6+ {[%emt 0:00:21]} fxe6 {[%emt 0:00:49]} 24. Bxd6+ {[%emt 0:00:14]} Nf6 {[%emt 0:01:01]} 25. Bxc7 {[%emt 0:00:06]} Rdc8 {[%emt 0:00:24]} 26. Bxe6 {[%emt 0:00:20]} Rxc7 {[%emt 0:00:21]} 27. Qxa8 {[%emt 0:00:06]} Rc6 {[%emt 0:00:14]} 28. Bf5 {[%emt 0:00:28]} Rb6 {[%emt 0:00:37]} 29. Bg6 {[%emt 0:00:22]} Rxb2 {[%emt 0:00:14]} 30. Bxe8 {[%emt 0:00:07]} Nxe8 {[%emt 0:00:03]} 31. Rxe7 {[%emt 0:00:09]} Kxe7 {[%emt 0:00:05]} 32. Re1+ {[%emt 0:00:03]} Kd6 {[%emt 0:00:06]} 33. Qxe8 {[%emt 0:00:10]} c4 {[%emt 0:00:06]} 34. Qe5+ {[%emt 0:00:13]} Kc6 {[%emt 0:00:04]} 35. Qxb2 {[%emt 0:00:06]} g5 {[%emt 0:00:05]} 36. Re5 {[%emt 0:49:07]} 1-0

[Event "GER-ch Youth-U12 2022"]
[Site "Willingen"]
[Date "2022.06.05"]
[Round "1.6"]
[White "Mohammadzadeh, Daris"]
[Black "Malinowsky, Levi"]
[Result "0-1"]
[ECO "B42"]
[WhiteElo "1371"]
[BlackElo "1816"]
[Annotator "NA RC COMBH"]
[PlyCount "73"]
[EventDate "2022.06.05"]
[EventType "swiss"]
[EventRounds "9"]
[EventCountry "GER"]
[SourceTitle "playchess.com"]
[Source "ChessBase"]
[SourceQuality "1"]
[TimeControl "40/4500+30:900+30"]

1. e4 {[%emt 0:00:00]} c5 {[%emt 0:00:00]} 2. Nf3 {[%emt 0:00:00]} e6 {[%emt 0:00:00]} 3. d4 {[%emt 0:00:00]} cxd4 {[%emt 0:00:00]} 4. Nxd4 {[%emt 0:00:00]} a6 {[%emt 0:00:00]} 5. Bd3 {[%emt 0:00:00]} Qc7 {[%emt 0:00:00]} 6. O-O {[%emt 0:00:00]} Nf6 {[%emt 0:00:00]} 7. c4 {[%emt 0:00:00]} b6 {[%emt 0:00:00]} 8. Nc3 {[%emt 0:00:00]} Bb7 {[%emt 0:00:00]} 9. Qe2 {[%emt 0:00:00]} d6 {[%emt 0:00:00]} 10. b3 {[%emt 0:00:00]} b5 {[%emt 0:00:00]} 11. Bb2 {[%emt 0:00:00]} bxc4 {[%emt 0:01:01]} 12. Bxc4 {[%emt 0:00:00]} Nbd7 {[%emt 0:04:21]} 13. Rac1 {[%emt 0:00:43]} Qa5 {[%emt 0:04:15] [#]} 14. Kh1 {[%emt 0:05:27]} (14. Nd5 $1 $18 {[%mdl 512]}) 14... Ne5 {[%emt 0:05:24]} 15. f4 {[%emt 0:11:15]} Nxc4 {[%emt 0:00:49]} 16. Qxc4 {[%emt 0:00:27]} Rc8 {[%emt 0:08:44]} 17. Qe2 {[%emt 0:05:21]} Be7 {[%emt 0:16:08]} 18. e5 {[%emt 0:18:51]} dxe5 {[%emt 0:06:03]} 19. fxe5 {[%emt 0:03:10]} Nd7 {[%emt 0:01:27]} 20. Qg4 $15 {[%emt 0:14:44]} g6 {[%emt 0:04:35]} 21. Qf4 {[%emt 0:02:10]} O-O {[%emt 0:03:19]} 22. Rfe1 {[%emt 0:04:02]} Nb6 {[%emt 0:04:27]} 23. Qh6 {[%emt 0:15:21]} Rfd8 {[%emt 0:02:24]} 24. Nf3 {[%emt 0:01:24]} Bf8 {[%emt 0:08:06]} 25. Qh4 {[%emt 0:00:53]} Bxf3 {[%emt 0:08:59]} 26. gxf3 {[%emt 0:00:06]} Nd5 {[%emt 0:00:48]} 27. Qa4 {[%emt 0:02:36]} Qxa4 {[%emt 0:03:16]} 28. Nxa4 {[%emt 0:00:02]} Bh6 {[%emt 0:00:25]} 29. Rxc8 {[%emt 0:01:37]} Rxc8 {[%emt 0:00:05]} 30. Re2 {[%emt 0:00:52]} Bf4 {[%emt 0:01:24]} 31. Kg2 {[%emt 0:01:17]} Kg7 {[%emt 0:01:04]} 32. Re4 {[%emt 0:00:40]} g5 {[%emt 0:01:11]} 33. h4 {[%emt 0:00:27]} Rc2+ {[%emt 0:00:31]} 34. Kg1 {[%emt 0:00:26]} gxh4 {[%emt 0:00:34]} 35. Nc3 {[%emt 0:00:32]} Bh2+ {[%emt 0:00:56]} 36. Kh1 {[%emt 0:00:30]} Rxb2 {[%emt 0:00:41]} 37. Ra4 {[%emt 0:00:00]} 0-1

[Event "GER-ch Youth-U12 2022"]
[Site "Willingen"]
[Date "2022.06.05"]
[Round "1.8"]
[White "Freude, Paul"]
[Black "Schuricht, Emil Frederick"]
[Result "1-0"]
[ECO "B13"]
[WhiteElo "1415"]
[BlackElo "1641"]
[Annotator "NA RC COMBH"]
[PlyCount "43"]
[EventDate "2022.06.05"]
[EventType "swiss"]
[EventRounds "9"]
[EventCountry "GER"]
[SourceTitle "playchess.com"]
[Source "ChessBase"]
[SourceQuality "1"]
[TimeControl "40/4500+30:900+30"]

1. e4 {[%emt 0:00:00]} c6 {[%emt 0:00:00]} 2. d4 {[%emt 0:00:00]} d5 {[%emt 0:00:00]} 3. exd5 {[%emt 0:00:00]} cxd5 {[%emt 0:00:00]} 4. Bd3 {[%emt 0:00:00]} Nc6 {[%emt 0:00:00]} 5. c3 {[%emt 0:00:00]} Nf6 {[%emt 0:00:00]} 6. h3 {[%emt 0:00:00]} g6 {[%emt 0:00:00]} 7. Bf4 {[%emt 0:00:00]} Bf5 {[%emt 0:00:00]} 8. Nf3 {[%emt 0:00:00]} Qb6 {[%emt 0:00:00]} 9. Bxf5 {[%emt 0:00:00]} Qxb2 {[%emt 0:04:22]} 10. Bd3 {[%emt 0:00:00]} Qxa1 {[%emt 0:05:28]} 11. Qc2 {[%emt 0:00:00]} Rc8 {[%emt 0:04:18]} 12. O-O {[%emt 0:00:00]} Nb4 {[%emt 0:05:49]} 13. Qa4+ {[%emt 0:00:00]} Nc6 {[%emt 0:00:15]} 14. Qb3 {[%emt 0:00:00]} Ne4 {[%emt 0:12:00]} 15. Bxe4 {[%emt 0:01:34]} dxe4 {[%emt 0:00:26]} 16. Ng5 {[%emt 0:00:56]} Nd8 {[%emt 0:07:07]} 17. Nxe4 {[%emt 0:03:01]} f5 {[%emt 0:00:41]} 18. Nc5 {[%emt 0:00:37]} b6 {[%emt 0:09:03]} 19. Na4 {[%emt 0:00:28]} Bg7 {[%emt 0:01:18]} 20. Bc1 {[%emt 0:02:04]} Bxd4 {[%emt 0:03:43]} 21. Bb2 {[%emt 0:00:18]} Bxf2+ {[%emt 0:00:06]} 22. Kxf2 {[%emt 0:00:24]} 1-0

[Event "GER-ch Youth-U12 2022"]
[Site "Willingen"]
[Date "2022.06.05"]
[Round "1.9"]
[White "Nemitz, Alfred"]
[Black "Haertel, Leon"]
[Result "1-0"]
[ECO "D36"]
[WhiteElo "1611"]
[BlackElo "1536"]
[Annotator "NA RC COMBH"]
[PlyCount "97"]
[EventDate "2022.06.05"]
[EventType "swiss"]
[EventRounds "9"]
[EventCountry "GER"]
[SourceTitle "playchess.com"]
[Source "ChessBase"]
[SourceQuality "1"]
[TimeControl "40/4500+30:900+30"]

1. d4 {[%emt 0:00:00]} d5 {[%emt 0:00:00]} 2. c4 {[%emt 0:00:00]} e6 {[%emt 0:00:00]} 3. Nc3 {[%emt 0:00:00]} Nf6 {[%emt 0:00:00]} 4. cxd5 {[%emt 0:00:00]} exd5 {[%emt 0:00:00]} 5. Bg5 {[%emt 0:00:00]} c6 {[%emt 0:00:00]} 6. Qc2 {[%emt 0:00:00]} Be7 {[%emt 0:00:00]} 7. e3 {[%emt 0:00:00]} Nbd7 {[%emt 0:00:00]} 8. Bd3 {[%emt 0:00:00]} O-O {[%emt 0:00:00]} 9. Nf3 {[%emt 0:00:00]} Re8 {[%emt 0:00:00]} 10. O-O {[%emt 0:00:00]} Nf8 {[%emt 0:00:00]} 11. Rab1 {[%emt 0:00:00]} Bg4 {[%emt 0:00:00]} 12. Ne5 {[%emt 0:00:00]} Bh5 {[%emt 0:00:00]} 13. b4 {[%emt 0:00:00]} a6 {[%emt 0:00:00]} 14. a4 {[%emt 0:00:00]} Bd6 {[%emt 0:00:00]} 15. Bf4 {[%emt 0:00:00]} Ng6 {[%emt 0:00:00]} 16. Nxg6 {[%emt 0:00:00]} Bxg6 {[%emt 0:00:00]} 17. Bxd6 {[%emt 0:00:00]} Qxd6 {[%emt 0:00:00]} 18. h3 {[%emt 0:00:00]} b5 {[%emt 0:00:00]} 19. Rfc1 {[%emt 0:00:00]} Qd7 {[%emt 0:01:38]} 20. Bxg6 {[%emt 0:03:45]} hxg6 {[%emt 0:00:28]} 21. Ne2 {[%emt 0:00:22]} Rec8 {[%emt 0:00:17]} 22. Nf4 {[%emt 0:00:49]} Ne8 {[%emt 0:01:31]} 23. Nd3 {[%emt 0:00:50]} Nd6 {[%emt 0:00:15]} 24. Ne5 {[%emt 0:00:10]} Qb7 {[%emt 0:00:32]} 25. Nd3 {[%emt 0:08:24]} Nc4 {[%emt 0:03:36]} 26. Nc5 {[%emt 0:00:39]} Qc7 {[%emt 0:01:58]} 27. Ra1 {[%emt 0:00:58]} Qb6 {[%emt 0:01:39]} 28. Qc3 {[%emt 0:05:59]} Kh7 {[%emt 0:10:47]} 29. axb5 {[%emt 0:02:20]} axb5 {[%emt 0:04:30]} 30. e4 {[%emt 0:10:04]} dxe4 {[%emt 0:02:42]} 31. Nxe4 {[%emt 0:00:15]} Rd8 {[%emt 0:00:12]} 32. Ng5+ {[%emt 0:04:00]} Kg8 {[%emt 0:00:50]} 33. Qf3 {[%emt 0:00:26]} Qc7 {[%emt 0:00:25]} 34. Rxa8 {[%emt 0:02:32]} Rxa8 {[%emt 0:00:24]} 35. d5 {[%emt 0:00:04]} Qe7 {[%emt 0:02:35]} 36. h4 {[%emt 0:01:42]} cxd5 {[%emt 0:02:32]} 37. Qxd5 {[%emt 0:00:37]} Rb8 {[%emt 0:00:08]} 38. Kf1 {[%emt 0:02:24]} Qf6 {[%emt 0:02:05]} 39. Re1 {[%emt 0:01:38]} Qf5 {[%emt 0:04:07]} 40. Qxf5 {[%emt 0:12:37]} gxf5 {[%emt 0:00:31]} 41. Re7 {[%emt 0:15:05]} Nd6 {[%emt 0:15:36]} 42. Rd7 {[%emt 0:00:08]} f6 {[%emt 0:02:17]} 43. Ne6 {[%emt 0:01:01]} Ne8 {[%emt 0:00:08]} 44. Nd4 {[%emt 0:00:22]} g6 {[%emt 0:00:23]} 45. Rd5 {[%emt 0:01:56]} Nc7 {[%emt 0:00:32]} 46. Rd6 {[%emt 0:02:51]} Ne8 {[%emt 0:02:00]} 47. Rd7 {[%emt 0:00:54]} Kh8 {[%emt 0:02:03]} 48. Nc6 {[%emt 0:03:57]} Ng7 {[%emt 0:04:25]} 49. Nxb8 {[%emt 0:00:31]} 1-0